bitfinex-derivatives/quotes_BNBF0:USTF0_20250329
["timestamp","ask_amount","ask_price","bid_price","bid_amount"]
[1743222457787,0.5846706,612.57,612.02,6.885]
[1743222457986,0.2842696,612.57,612.02,6.885]
[1743222459285,0.32648796,612.58,612.02,6.885]
[1743222459580,0.30039912,612.57,612.02,6.885]
[1743222459784,0.32649862,612.56,612.02,6.885]
[1743222460181,0.30040627,612.55,612.02,6.885]
[1743222460382,0.32650928,612.54,612.02,6.885]
[1743222461285,0.30040788,612.53,612.02,6.885]
[1743222461480,0.32651995,612.52,612.02,6.885]
[1743222461679,0.30040788,612.51,612.02,6.885]
[1743222462483,0.32651995,612.52,612.02,6.885]
[1743222463585,0.28429514,612.51,612.02,6.885]
[1743222465186,0.32651995,612.52,612.02,6.885]
[1743222466387,0.28426147,612.51,612.02,6.885]
[1743222468287,0.32651995,612.52,612.02,6.885]
[1743222469487,0.28426379,612.51,612.02,6.885]
[1743222471285,0.32651995,612.52,612.02,6.885]
[1743222472590,0.28420459,612.51,612.02,6.885]
[1743222474390,0.32651995,612.52,612.02,6.885]
[1743222475591,0.28421388,612.51,612.02,6.885]
[1743222477403,0.32651995,612.52,612.02,6.885]
[1743222478495,0.28423941,612.51,612.02,6.885]
[1743222480301,0.32651995,612.52,612.02,6.885]
[1743222480698,0.28434276,612.5,612.02,6.885]
[1743222486305,0.32651995,612.52,612.02,6.885]
[1743222486710,0.2843509,612.49,612.02,6.885]
[1743222489307,0.32651995,612.52,612.02,6.885]
[1743222490603,0.28427076,612.51,612.02,6.885]
[1743222492505,0.32651995,612.52,612.02,6.885]
[1743222493601,0.28427773,612.51,612.02,6.885]
[1743222495308,0.32651995,612.52,612.02,6.885]
[1743222496607,0.28428005,612.51,612.02,6.885]
[1743222498308,0.32651995,612.52,612.02,6.885]
[1743222499813,0.28430095,612.51,612.02,6.885]
[1743222500014,0.58467452,612.51,612.02,6.885]
[1743222500313,0.30037357,612.5,612.02,6.885]
[1743222501512,0.28436716,612.49,612.02,6.885]
[1743222501715,0.30037357,612.48,612.02,6.885]
[1743222501909,0.28436716,612.49,612.02,6.885]
[1743222503020,0.30037686,612.48,612.02,6.885]
[1743222504020,0.28436716,612.49,612.02,6.885]
[1743222504420,0.32651995,612.52,612.02,6.885]
[1743222504723,0.284366,612.48,612.02,6.885]
[1743222507323,0.32651995,612.52,612.02,6.885]
[1743222507721,0.284366,612.47,612.02,6.885]
[1743222510322,0.32651995,612.52,612.02,6.885]
[1743222510524,0.284366,612.46,612.02,6.885]
[1743222513329,0.32651995,612.52,612.02,6.885]
[1743222514626,0.28432534,612.51,612.02,6.885]
[1743222514828,0.32653061,612.5,612.02,6.885]
[1743222517430,0.28429166,612.49,612.02,6.885]
[1743222519332,0.32653061,612.5,612.02,6.885]
[1743222520528,0.28428818,612.49,612.02,6.885]
[1743222522229,0.32653061,612.5,612.02,6.885]
[1743222523531,0.28428005,612.49,612.02,6.885]
[1743222525237,0.32653061,612.5,612.02,6.885]
[1743222525934,0.28426031,612.49,612.02,6.885]
[1743222527238,0.32653061,612.5,612.02,6.885]
[1743222527435,6.8083308,613.25,612.02,6.885]
[1743222527639,0.28431489,612.58,612.02,6.885]
[1743222527841,0.3261419,613.23,612.02,6.885]
[1743222528037,0.30030037,613.22,612.02,6.885]
[1743222528841,0.32615786,613.2,612.02,6.885]
[1743222529042,0.30030037,613.19,612.02,6.885]
[1743222529444,0.32617381,613.17,612.02,6.885]
[1743222529642,0.30030037,613.16,612.02,6.885]
[1743222530047,0.32618977,613.14,612.02,6.885]
[1743222530344,0.30030037,613.13,612.02,6.885]
[1743222530739,0.32620573,613.11,612.02,6.885]
[1743222530944,0.30030037,613.1,612.02,6.885]
[1743222531245,0.3262217,613.08,612.02,6.885]
[1743222531446,0.3003028,613.07,612.02,6.885]
[1743222531644,0.58454918,613.07,612.02,6.885]
[1743222531846,0.3003028,613.06,612.02,6.885]
[1743222534745,0.58457711,613.05,612.02,6.885]
[1743222535047,0.30031448,613.04,612.02,6.885]
[1743222535945,0.32625362,613.02,612.02,6.885]
[1743222536145,0.30031448,613.01,612.02,6.885]
[1743222536448,0.32626959,612.99,612.02,6.885]
[1743222536649,0.30031448,612.98,612.02,6.885]
[1743222536949,0.32628556,612.96,612.02,6.885]
[1743222537150,0.30031448,612.95,612.02,6.885]
[1743222537551,0.58458756,612.95,612.02,6.885]
[1743222537744,0.30031448,612.94,612.02,6.885]
[1743222537946,0.28427308,612.95,612.02,6.885]
[1743222538144,0.30031642,612.94,612.02,6.885]
[1743222538350,0.32630153,612.93,612.02,6.885]
[1743222538649,0.30031642,612.92,612.02,6.885]
[1743222538850,0.3263175,612.9,612.02,6.885]
[1743222539050,0.30031642,612.89,612.02,6.885]
[1743222539247,0.32633348,612.87,612.02,6.885]
[1743222539447,0.30031642,612.86,612.02,6.885]
[1743222539649,0.32634412,612.85,612.02,6.885]
[1743222540047,0.30031642,612.84,612.02,6.885]
[1743222540248,0.32635478,612.83,612.02,6.885]
[1743222540550,0.30031642,612.82,612.02,6.885]
[1743222540745,0.32636543,612.81,612.02,6.885]
[1743222540946,0.30031642,612.8,612.02,6.885]
[1743222541151,0.32637608,612.79,612.02,6.885]
[1743222541349,0.30031642,612.78,612.02,6.885]
[1743222541547,0.32638673,612.77,612.02,6.885]
[1743222541746,0.30031642,612.76,612.02,6.885]
[1743222541949,0.32639738,612.75,612.02,6.885]
[1743222542149,0.30031642,612.74,612.02,6.885]
[1743222542446,0.32640804,612.73,612.02,6.885]
[1743222542651,0.30031642,612.72,612.02,6.885]
[1743222542947,0.32641869,612.71,612.02,6.885]
[1743222543151,0.30031642,612.7,612.02,6.885]
[1743222543356,0.32642935,612.69,612.02,6.885]
[1743222543546,0.30031642,612.68,612.02,6.885]
[1743222543947,0.6267511,612.68,612.02,6.885]
[1743222544149,0.30033043,612.67,612.02,6.885]
[1743222545548,0.32644533,612.66,612.02,6.885]
[1743222545755,0.30033043,612.65,612.02,6.885]
[1743222546148,0.62682058,612.64,612.02,6.885]
[1743222546354,0.32646132,612.63,612.02,6.885]
[1743222546555,0.62682591,612.63,612.02,6.885]
[1743222546754,0.61084359,612.63,612.02,6.885]
[1743222546956,0.30043483,612.62,612.02,6.885]
[1743222547155,0.32647198,612.61,612.02,6.885]
[1743222547350,0.30043483,612.6,612.02,6.885]
[1743222547551,0.32648263,612.59,612.02,6.885]
[1743222547755,0.30043483,612.58,612.02,6.885]
[1743222547956,0.62694057,612.57,612.02,6.885]
[1743222548156,0.6269459,612.56,612.02,6.885]
[1743222548355,0.62695123,612.55,612.02,6.885]
[1743222548549,0.62695656,612.54,612.02,6.885]
[1743222548754,0.62696189,612.53,612.02,6.885]
[1743222548952,0.62696723,612.52,612.02,6.885]
[1743222549153,0.62697256,612.51,612.02,6.885]
[1743222549354,0.62697789,612.5,612.02,6.885]
[1743222549550,0.62698322,612.49,612.02,6.885]
[1743222549752,0.62698855,612.48,612.02,6.885]
[1743222549956,0.62699388,612.47,612.02,6.885]
[1743222550258,0.62699921,612.46,612.02,6.885]
[1743222550457,0.32655193,612.46,612.02,6.885]
[1743222550661,0.30045327,612.45,612.02,6.885]
[1743222551461,0.32655193,612.46,612.02,6.885]
[1743222552955,0.58483559,612.45,612.02,6.885]
[1743222553161,0.30045216,612.44,612.02,6.885]
[1743222553562,0.30045216,612.44,610.35,1.21809693]
[1743222553763,0.30045216,612.44,610.45,0.32762716]
[1743222553958,0.30045216,612.44,611.07,0.28440434]
[1743222554263,0.30045216,612.44,611.08,0.62246575]
[1743222554456,0.30045216,612.44,611.09,0.6224604]
[1743222554662,0.30045216,612.44,611.1,0.62245504]
[1743222554860,0.30045216,612.44,611.11,0.62244969]
[1743222555161,0.30045216,612.44,610.38,1.21809693]
[1743222555162,0.30045216,612.44,611.12,0.62244433]
[1743222555356,0.30045216,612.44,611.13,0.62243898]
[1743222555559,0.30045216,612.44,611.14,0.62243362]
[1743222555761,0.30045216,612.44,611.15,0.29517637]
[1743222555960,0.30045216,612.44,611.15,1.65017637]
[1743222556158,0.30045216,612.44,611.15,2.792]
[1743222556364,0.30045216,612.44,611.16,0.29517819]
[1743222557462,0.30045216,612.44,611.16,1.66117819]
[1743222557657,0.30045216,612.44,611.17,0.29517819]
[1743222558564,0.30045216,612.45,611.17,0.29517819]
[1743222558761,0.30045216,612.44,611.17,0.29517819]
[1743222558959,2.44269362,613.07,611.18,0.32723583]
[1743222559164,0.6264855,613.06,611.19,0.29517819]
[1743222559363,0.62649082,613.05,611.21,0.32721977]
[1743222559567,0.62649614,613.04,611.22,0.29517819]
[1743222559763,0.62650146,613.03,611.24,0.32720371]
[1743222559962,0.62650678,613.02,611.25,0.29517819]
[1743222560157,0.62651211,613.01,611.27,0.32718765]
[1743222560358,0.62651743,613.0,611.28,0.29517819]
[1743222560565,0.62652275,612.99,611.3,0.3271716]
[1743222560758,0.62652807,612.98,611.31,0.29517819]
[1743222561065,0.30025316,612.97,611.33,0.32715554]
[1743222561262,0.30025316,612.97,611.34,0.29517819]
[1743222561663,0.61060393,612.96,611.36,0.32713949]
[1743222561864,0.62654404,612.95,611.37,0.29517819]
[1743222562062,0.62654937,612.94,611.39,0.32712344]
[1743222562262,0.62655469,612.93,611.4,0.29517819]
[1743222562462,0.62656001,612.92,611.41,0.32711273]
[1743222562662,0.62656534,612.91,611.42,0.29517819]
[1743222562865,0.30025316,612.9,611.43,0.32710203]
[1743222563066,0.30025316,612.9,611.44,0.29517819]
[1743222563267,0.30025316,612.9,611.45,0.32709134]
[1743222563663,0.30025316,612.9,611.46,0.29517819]
[1743222563964,0.30025316,612.9,611.47,0.32708064]
[1743222564165,0.30025316,612.9,611.48,0.29517819]
[1743222564365,0.30025316,612.9,611.49,0.32706994]
[1743222564563,0.30025316,612.9,611.5,0.29517819]
[1743222564762,0.28431024,612.89,611.51,0.32705924]
[1743222564965,0.30025316,612.88,611.52,0.29517819]
[1743222565163,0.30025316,612.88,611.53,0.32704855]
[1743222565366,0.30025316,612.88,611.54,0.29517819]
[1743222565563,0.30025316,612.88,611.55,0.32703785]
[1743222565765,0.30025316,612.88,611.56,0.29517819]
[1743222565967,0.30025316,612.88,611.57,0.32702715]
[1743222566265,0.30025316,612.88,611.58,0.29517819]
[1743222566470,0.30025316,612.88,611.59,0.32701646]
[1743222566669,0.30025316,612.88,611.6,0.29517819]
[1743222567670,0.28429863,612.87,611.6,0.29517819]
[1743222568070,0.30025316,612.86,611.6,0.29517819]
[1743222568572,0.3002153,612.85,611.61,0.29494074]
[1743222568871,0.3002153,612.85,611.59,0.32701646]
[1743222568872,0.3002153,612.86,611.6,0.29494074]
[1743222569172,0.28429863,612.87,611.59,0.32701646]
[1743222569373,0.30021454,612.86,611.6,0.29493999]
[1743222571173,0.32634412,612.85,611.59,0.32701646]
[1743222573274,0.32634412,612.85,611.6,0.832]
[1743222573668,0.28436019,612.84,611.61,1.22]
[1743222573871,0.32635478,612.83,611.61,1.22]
[1743222574876,0.32635478,612.83,611.62,0.927]
[1743222575675,0.32635478,612.83,611.63,1.067]
[1743222576776,0.28419183,612.82,611.63,1.067]
[1743222576976,0.32636543,612.81,611.63,1.067]
[1743222580682,0.28419763,612.8,611.63,1.067]
[1743222580885,0.61056838,612.8,611.63,1.067]
[1743222581088,0.30026926,612.79,611.63,1.067]
[1743222583584,0.28432999,612.78,611.63,1.067]
[1743222583788,0.30026926,612.77,611.63,1.067]
[1743222585588,0.30026926,612.79,611.63,1.067]
[1743222586182,0.30027116,612.78,611.63,1.067]
[1743222586385,0.32637075,612.8,611.63,1.067]
[1743222586386,0.30027116,612.77,611.63,1.067]
[1743222586588,0.28432999,612.77,611.63,1.067]
[1743222586789,0.30027116,612.76,611.63,1.067]
[1743222588190,0.30027116,612.76,611.64,1.11]
[1743222588590,0.30027116,612.79,611.65,1.366]
[1743222588790,0.30027116,612.78,611.65,1.366]
[1743222588988,0.30027116,612.77,611.65,1.366]
[1743222589189,0.30027116,612.79,611.65,1.366]
[1743222589400,0.30027116,612.78,611.65,1.366]
[1743222589691,0.30027116,612.77,611.65,1.366]
[1743222591590,0.30027116,612.79,611.65,1.366]
[1743222591792,0.30027116,612.78,611.65,1.366]
[1743222591985,0.30027116,612.79,611.65,1.366]
[1743222592186,0.30027116,612.78,611.65,1.366]
[1743222592390,0.30027116,612.77,611.65,1.366]
[1743222592589,0.30027116,612.76,611.65,1.366]
[1743222594591,0.30027116,612.79,611.65,1.366]
[1743222595591,0.61071719,612.78,611.65,1.366]
[1743222595794,0.32638673,612.77,611.65,1.366]
[1743222597798,0.28431837,612.76,611.65,1.366]
[1743222600393,0.32638673,612.77,611.65,1.366]
[1743222600799,0.28419995,612.76,611.65,1.366]
[1743222601301,0.30025529,612.75,611.66,0.29498065]
[1743222602000,0.30025529,612.75,611.64,1.11]
[1743222602398,0.30025529,612.75,611.65,0.29499194]
[1743222602592,0.30025529,612.75,611.64,1.11]
[1743222603502,0.58459573,612.74,611.64,1.11]
[1743222603694,0.30025529,612.73,611.64,1.11]
[1743222604500,0.30025529,612.73,611.65,1.298]
[1743222605101,0.30025529,612.73,611.65,2.238]
[1743222606502,0.32641336,612.72,611.65,2.238]
[1743222607702,0.2843265,612.71,611.65,3.391]
[1743222607898,0.32642402,612.7,611.65,4.602]
[1743222608506,0.32642402,612.7,611.65,5.921]
[1743222610601,0.2842696,612.69,611.65,5.921]
[1743222610802,0.2842696,612.69,611.65,7.428]
[1743222611601,0.32643468,612.68,611.65,7.428]
[1743222613604,0.28424986,612.67,611.65,7.428]
[1743222613805,0.30031463,612.66,611.65,7.428]
[1743222614105,0.28424986,612.67,611.65,7.428]
[1743222615303,0.32643468,612.68,611.65,7.428]
[1743222616599,0.28426031,612.67,611.65,7.428]
[1743222618407,0.32643468,612.68,611.65,7.428]
[1743222619710,0.28422781,612.67,611.65,7.428]
[1743222621311,0.32643468,612.68,611.65,7.428]
[1743222622109,2.44269362,613.7,611.65,7.428]
[1743222622309,0.32594524,613.6,611.65,7.428]
[1743222622503,0.30016127,613.59,611.65,7.428]
[1743222623011,0.30016127,613.59,611.66,0.32697904]
[1743222623412,0.32596117,613.57,611.66,0.32697904]
[1743222623608,0.30016127,613.56,611.66,0.32697904]
[1743222625112,0.32597711,613.54,611.66,0.32697904]
[1743222625316,0.30016127,613.53,611.66,0.32697904]
[1743222625517,0.32599305,613.51,611.66,0.32697904]
[1743222625814,0.30016127,613.5,611.66,0.32697904]
[1743222626015,0.32600899,613.48,611.66,0.32697904]
[1743222626218,0.30016127,613.47,611.66,0.32697904]
[1743222626418,0.32602494,613.45,611.66,0.32697904]
[1743222626618,0.30016127,613.44,611.66,0.32697904]
[1743222626819,0.32604088,613.42,611.66,0.32697904]
[1743222627119,0.30016127,613.41,611.67,0.294898]
[1743222627313,0.32605683,613.39,611.67,0.294898]
[1743222627511,0.30019197,613.38,611.68,0.29491748]
[1743222627715,0.32607277,613.36,611.67,0.29491748]
[1743222627912,0.30019197,613.35,611.67,0.29491748]
[1743222628117,0.32608872,613.33,611.67,0.29491748]
[1743222628420,0.30019197,613.32,611.67,0.29491748]
[1743222628719,0.30019197,613.31,611.67,0.29491748]
[1743222628916,0.32610999,613.29,611.67,0.29491748]
[1743222629120,0.30019197,613.28,611.67,0.29491748]
[1743222629418,0.32612594,613.26,611.67,0.29491748]
[1743222629616,0.30019197,613.25,611.67,0.29491748]
[1743222629815,0.28424058,613.32,611.67,0.29491748]
[1743222629816,0.3261419,613.23,611.67,0.29491748]
[1743222630017,0.30019197,613.22,611.67,0.29491748]
[1743222630213,0.32615786,613.2,611.67,0.29491748]
[1743222630418,0.30019197,613.19,611.67,0.29491748]
[1743222630617,2.44269362,613.34,611.67,0.29491748]
[1743222630618,0.32617381,613.17,611.67,0.29491748]
[1743222630923,0.30019197,613.16,611.67,1.25291748]
[1743222631119,0.30019197,613.15,611.68,0.29491748]
[1743222631423,0.32619509,613.13,611.67,1.968]
[1743222631624,0.30019197,613.12,611.67,1.968]
[1743222631825,0.32621105,613.1,611.67,3.285]
[1743222632020,0.30019197,613.09,611.67,3.285]
[1743222632325,0.3262217,613.08,611.67,4.542]
[1743222633025,0.3262217,613.08,611.67,5.587]
[1743222633927,0.30017895,613.07,611.67,5.587]
[1743222634227,0.32623234,613.06,611.67,5.587]
[1743222634623,0.61049729,613.06,611.67,5.587]
[1743222635120,0.30016727,613.05,611.68,0.29489422]
[1743222635322,0.32624298,613.04,611.68,0.29489422]
[1743222635528,0.30016727,613.03,611.68,0.29489422]
[1743222635729,0.32625362,613.02,611.68,0.29489422]
[1743222635931,0.30016727,613.01,611.68,0.29489422]
[1743222636227,0.32626427,613.0,611.68,0.29489422]
[1743222636628,0.30016727,612.99,611.68,0.29489422]
[1743222636930,0.32627491,612.98,611.68,0.29489422]
[1743222637129,0.30016727,612.97,611.68,0.29489422]
[1743222637733,0.28426263,612.96,611.68,0.29489422]
[1743222637925,0.30016727,612.95,611.68,0.29489422]
[1743222639530,0.30016727,612.94,611.68,0.29489422]
[1743222639830,0.30016727,612.93,611.68,0.29489422]
[1743222641232,0.28426495,612.94,611.67,5.587]
[1743222641428,0.30021578,612.93,611.68,0.29494129]
[1743222641926,0.32630685,612.92,611.67,5.587]
[1743222642127,0.30021578,612.91,611.67,5.587]
[1743222643529,0.32630685,612.92,611.67,5.587]
[1743222643732,0.30030548,612.91,611.67,5.587]
[1743222645738,0.28435787,612.9,611.67,5.587]
[1743222645937,0.30030548,612.89,611.67,5.587]
[1743222647434,0.32633348,612.87,611.67,5.587]
[1743222647638,0.30030548,612.86,611.67,5.587]
[1743222647939,0.32634945,612.84,611.67,5.587]
[1743222648140,0.30030548,612.83,611.67,5.587]
[1743222649242,0.32636543,612.81,611.67,5.587]
[1743222649441,0.30030548,612.8,611.67,5.587]
[1743222650043,0.30033339,612.79,611.67,5.587]
[1743222650243,0.30033339,612.8,611.67,5.587]
[1743222650443,0.30033339,612.79,611.67,5.587]
[1743222650644,0.32636543,612.81,611.67,5.587]
[1743222650844,0.30033366,612.8,611.67,5.587]
[1743222651145,0.3263814,612.78,611.67,5.587]
[1743222651346,0.30033366,612.77,611.67,5.587]
[1743222651544,0.32639738,612.75,611.67,5.587]
[1743222651945,0.30033366,612.74,611.67,5.587]
[1743222652240,0.32641336,612.72,611.67,5.587]
[1743222652444,0.30033366,612.71,611.67,5.587]
[1743222652645,0.32642402,612.7,611.67,5.587]
[1743222652840,0.30033366,612.69,611.67,5.587]
[1743222653043,0.32643468,612.68,611.67,5.587]
[1743222653239,0.30033366,612.67,611.67,5.587]
[1743222653643,0.32644533,612.66,611.67,5.587]
[1743222653849,0.30033366,612.65,611.67,5.587]
[1743222654149,0.32645599,612.64,611.67,5.587]
[1743222654344,0.30033366,612.63,611.67,5.587]
[1743222654548,0.32646665,612.62,611.67,5.587]
[1743222654749,0.30033366,612.61,611.67,5.587]
[1743222655350,0.3264773,612.6,611.67,5.587]
[1743222655551,0.30033366,612.59,611.67,5.587]
[1743222655852,0.32648796,612.58,611.67,5.587]
[1743222656155,0.30033366,612.57,611.67,5.587]
[1743222656446,0.32649862,612.56,611.67,5.587]
[1743222656644,0.30033366,612.55,611.67,5.587]
[1743222656850,0.32650928,612.54,611.67,5.587]
[1743222657050,0.30033366,612.53,611.67,5.587]
[1743222657950,0.32650928,612.54,611.67,5.587]
[1743222658551,0.28431953,612.53,611.67,5.587]
[1743222658745,0.32651995,612.52,611.67,5.587]
[1743222661651,0.28432766,612.51,611.67,5.587]
[1743222661845,0.32653061,612.5,611.67,5.587]
[1743222663553,0.32653061,612.5,611.67,6.555]
[1743222664053,0.30040332,612.49,611.67,6.555]
[1743222664252,0.32654127,612.48,611.67,6.555]
[1743222664750,0.61098048,612.48,611.67,6.555]
[1743222665854,0.30038182,612.47,611.67,6.555]
[1743222666153,0.61098048,612.48,611.67,6.555]
[1743222666354,0.30037805,612.47,611.67,6.555]
[1743222666750,0.32654127,612.48,611.67,6.555]
[1743222667352,0.28430676,612.47,611.67,6.555]
[1743222669357,0.32654127,612.48,611.67,6.555]
[1743222670456,0.28431605,612.47,611.67,6.555]
[1743222672061,0.30036316,612.46,611.67,6.555]
[1743222672760,0.58479191,612.45,611.67,6.555]
[1743222672960,0.30036316,612.44,611.67,6.555]
[1743222674955,0.28442875,612.45,611.67,6.555]
[1743222678364,0.32654127,612.48,611.67,6.555]
[1743222678758,0.28441132,612.44,611.67,6.555]
[1743222681460,0.3003893,612.43,611.67,6.555]
[1743222681660,0.3003893,612.47,611.67,6.555]
[1743222681862,0.3003893,612.46,611.67,6.555]
[1743222682065,0.3003893,612.47,611.67,6.555]
[1743222682765,0.28443224,612.46,611.67,6.555]
[1743222682967,0.3003893,612.45,611.67,6.555]
[1743222684162,0.28443224,612.46,611.67,6.555]
[1743222684367,0.30040259,612.45,611.67,6.555]
[1743222684566,0.30040259,612.47,611.67,6.555]
[1743222684760,0.30040259,612.46,611.67,6.555]
[1743222684964,0.30040259,612.47,611.67,6.555]
[1743222685661,0.28445316,612.46,611.67,6.555]
[1743222686062,0.30045076,612.45,611.67,6.555]
[1743222686267,0.3265626,612.44,611.67,6.555]
[1743222686664,0.30045076,612.43,611.67,6.555]
[1743222687468,0.32657326,612.42,611.67,6.555]
[1743222687662,0.30045076,612.41,611.67,6.555]
[1743222687863,0.32658393,612.4,611.67,6.555]
[1743222688063,0.30045076,612.39,611.67,6.555]
[1743222688267,0.32659459,612.38,611.67,6.555]
[1743222688569,0.30045076,612.37,611.67,6.555]
[1743222688771,0.32660526,612.36,611.67,6.555]
[1743222688962,0.30045076,612.35,611.67,6.555]
[1743222689161,0.32661593,612.34,611.67,6.555]
[1743222689366,0.30045076,612.33,611.67,6.555]
[1743222689567,0.3266266,612.32,611.67,6.555]
[1743222689766,0.30045076,612.31,611.67,6.555]
[1743222689964,0.32663726,612.3,611.67,6.555]
[1743222690363,0.30051735,612.29,611.67,6.555]
[1743222690566,0.32664793,612.28,611.67,6.555]
[1743222690968,0.61115691,612.28,611.67,6.555]
[1743222691866,0.30052464,612.27,611.67,6.555]
[1743222692071,0.3266586,612.26,611.67,6.555]
[1743222692272,0.30052464,612.25,611.67,6.555]
[1743222692967,0.3005296,612.24,611.67,6.555]
[1743222693169,0.3005296,612.25,611.67,6.555]
[1743222693366,0.3005296,612.24,611.67,6.555]
[1743222693571,0.3266586,612.26,611.67,6.555]
[1743222693772,0.28451363,612.23,611.67,6.555]
[1743222693973,0.30053117,612.22,611.67,6.555]
[1743222696774,0.58505527,612.21,611.67,6.555]
[1743222696974,0.30053117,612.2,611.67,6.555]
[1743222699676,0.28453108,612.19,611.67,6.555]
[1743222701976,0.61122704,612.19,611.67,6.555]
[1743222702177,0.62724548,612.18,611.67,6.555]
[1743222702477,0.32670663,612.17,611.67,6.555]
[1743222703378,0.30058986,612.16,611.67,6.555]
[1743222703573,0.3267173,612.15,611.67,6.555]
[1743222705680,0.30059242,612.14,611.67,6.555]
[1743222705881,0.32672798,612.13,611.67,6.555]
[1743222706478,0.30058896,612.12,611.67,6.555]
[1743222706681,0.32673865,612.11,611.67,6.555]
[1743222708280,0.30063339,612.1,611.67,6.555]
[1743222708479,0.32674933,612.09,611.67,6.555]
[1743222708681,0.30063339,612.08,611.67,3.32]
[1743222708884,0.32676001,612.07,609.93,1.21809693]
[1743222709086,0.32676001,612.07,610.03,0.32785272]
[1743222709286,0.32676001,612.07,610.04,0.29535942]
[1743222709488,0.32676001,612.07,610.14,0.32779362]
[1743222709686,0.28468353,612.06,610.15,0.29535942]
[1743222709881,0.32677068,612.05,610.17,0.3277775]
[1743222710389,0.32677068,612.05,610.18,0.29535942]
[1743222710587,0.32677068,612.05,610.2,0.32776138]
[1743222710783,0.32677068,612.05,610.21,0.29535942]
[1743222710986,0.32677068,612.05,610.23,0.32774527]
[1743222711286,0.30064367,612.04,610.24,0.29535942]
[1743222711486,0.32678136,612.03,610.26,0.32772916]
[1743222711686,0.32678136,612.03,610.27,0.29535942]
[1743222711885,0.32678136,612.03,610.29,0.32771305]
[1743222712088,0.32678136,612.03,610.3,0.29535942]
[1743222712286,0.32678136,612.03,610.32,0.32769694]
[1743222712491,0.32678136,612.03,610.33,0.29535942]
[1743222712690,0.28465326,612.02,610.35,0.32768083]
[1743222712990,0.32679204,612.01,610.36,0.29535942]
[1743222713185,0.32679204,612.01,610.38,0.32766473]
[1743222713384,0.32679204,612.01,610.39,0.29535942]
[1743222713588,0.32679204,612.01,610.41,0.32764862]
[1743222713986,0.32679204,612.01,610.42,0.29535942]
[1743222714592,0.32679204,612.01,610.44,0.32763252]
[1743222714785,0.32679204,612.01,610.45,0.29535942]
[1743222714991,0.32679204,612.01,610.47,0.32761642]
[1743222715190,0.32679204,612.01,610.48,0.29535942]
[1743222715391,0.32679204,612.01,610.5,0.32760032]
[1743222715584,0.32679204,612.01,610.51,0.29535942]
[1743222715790,0.32679204,612.01,610.52,0.32758959]
[1743222715986,0.32679204,612.01,610.53,0.29535942]
[1743222716293,0.32679204,612.01,610.54,0.32757886]
[1743222716494,0.32679204,612.01,610.55,0.29535942]
[1743222716685,0.32679204,612.01,610.56,0.32756813]
[1743222716891,0.32679204,612.01,610.57,0.29535942]
[1743222717099,0.32679204,612.01,610.58,0.3275574]
[1743222717594,0.30064229,612.0,610.59,0.29536659]
[1743222718594,0.30064229,612.0,610.6,0.32754667]
[1743222718789,0.28472779,611.99,610.61,0.29536659]
[1743222718990,0.30064229,611.98,610.61,0.29536659]
[1743222719195,0.28472779,611.99,610.62,0.32753594]
[1743222719395,0.30064475,611.98,610.63,0.29536903]
[1743222720493,0.3268134,611.97,610.63,0.29536903]
[1743222720690,0.3268134,611.97,610.62,0.32753594]
[1743222720889,0.30069621,611.96,610.63,0.29542038]
[1743222721291,0.32682408,611.95,610.63,0.29542038]
[1743222721490,0.30069621,611.94,610.63,0.29542038]
[1743222721693,0.32683476,611.93,610.63,0.29542038]
[1743222721893,0.30069621,611.92,610.63,0.29542038]
[1743222722090,0.32684545,611.91,610.63,0.29542038]
[1743222722291,0.30069621,611.9,610.63,0.29542038]
[1743222722693,0.32685613,611.89,610.63,0.29542038]
[1743222722897,0.30069621,611.88,610.63,0.29542038]
[1743222723994,0.32685613,611.89,610.62,0.32753594]
[1743222724199,0.30070585,611.88,610.63,0.29542997]
[1743222724699,0.5854383,611.88,610.63,0.29542997]
[1743222724894,0.30070585,611.87,610.63,0.29542997]
[1743222726094,0.28473245,611.88,610.63,0.29542997]
[1743222726298,0.30067198,611.87,610.63,0.29542997]